[Event "EYCC G10-ch 2024"]
[Site "Prague"]
[Date "2024.08.24"]
[Round "3.9"]
[White "Wang, Yi Xuan"]
[Black "Sieczkowska, Hanna"]
[Result "1-0"]
[ECO "E20"]
[WhiteElo "1734"]
[BlackElo "1461"]
[Annotator "NA RC"]
[PlyCount "101"]
[EventDate "2024.08.19"]
[EventType "swiss"]
[EventCountry "CZE"]
[SourceTitle "playchess.com"]
[Source "ChessBase"]
[SourceQuality "1"]
[TimeControl "5400+30"]

1. d4 {[%emt 0:00:02]} Nf6 {[%emt 0:00:21]} 2. c4 {[%emt 0:00:09]} e6 {[%emt 0:00:22]} 3. Nc3 {[%emt 0:00:09]} Bb4 {[%emt 0:00:18]} 4. Bd2 {[%emt 0:00:12]} O-O {[%emt 0:01:29]} 5. e3 {[%emt 0:00:05]} c5 {[%emt 0:02:59]} 6. Bd3 {[%emt 0:00:36]} b6 {[%emt 0:01:09]} 7. Nf3 {[%emt 0:02:39]} Bb7 {[%emt 0:00:22]} 8. O-O {[%emt 0:01:33]} cxd4 {[%emt 0:08:25]} 9. exd4 {[%emt 0:01:21]} Bxc3 {[%emt 0:01:12]} 10. Bxc3 {[%emt 0:01:07]} d5 {[%emt 0:00:14]} 11. c5 {[%emt 0:02:39]} Nfd7 {[%emt 0:02:14]} 12. Bc2 {[%emt 0:02:29]} Ba6 {[%emt 0:01:41]} 13. Re1 {[%emt 0:01:14]} Nc6 {[%emt 0:00:43]} 14. b4 {[%emt 0:01:06]} Bc4 {[%emt 0:04:39]} 15. a4 {[%emt 0:02:12]} Qf6 {[%emt 0:01:48]} 16. b5 {[%emt 0:01:47]} Ne7 {[%emt 0:01:48]} 17. c6 Nb8 {[%emt 0:01:35]} 18. Ne5 {[%emt 0:01:16]} Rc8 {[%emt 0:00:58]} 19. Bb4 {[%emt 0:01:32]} Nf5 {[%emt 0:03:22]} 20. Bxf5 {[%emt 0:02:35]} Qxf5 {[%emt 0:00:21]} 21. Bd6 {[%emt 0:01:06]} f6 {[%emt 0:02:58]} 22. c7 {[%emt 0:02:08]} fxe5 {[%emt 0:03:27]} 23. cxb8=Q {[%emt 0:00:42]} Raxb8 {[%emt 0:00:33]} 24. Bxb8 {[%emt 0:00:41]} Rxb8 {[%emt 0:00:07]} 25. Rxe5 {[%emt 0:00:33]} Qf6 {[%emt 0:00:30]} 26. Qg4 {[%emt 0:00:48]} Re8 {[%emt 0:00:25]} 27. Rae1 {[%emt 0:00:33]} Qf7 {[%emt 0:01:42]} 28. Rxe6 {[%emt 0:01:34]} Rf8 {[%emt 0:00:18]} 29. f3 {[%emt 0:01:54]} Qf4 {[%emt 0:02:25]} 30. Qxf4 {[%emt 0:07:12]} Rxf4 {[%emt 0:00:10]} 31. Re8+ {[%emt 0:02:27]} Kf7 {[%emt 0:01:37]} 32. R8e7+ {[%emt 0:02:19]} Kg6 {[%emt 0:00:16]} 33. R1e6+ {[%emt 0:02:59]} Rf6 {[%emt 0:00:50]} 34. Rxf6+ {[%emt 0:01:19]} Kxf6 {[%emt 0:00:46]} 35. Rxa7 {[%emt 0:00:15]} Kf5 {[%emt 0:00:16]} 36. Rxg7 {[%emt 0:00:35]} Kf4 {[%emt 0:00:14]} 37. Kf2 {[%emt 0:00:23]} h5 {[%emt 0:00:07]} 38. h4 {[%emt 0:01:09]} Kf5 {[%emt 0:02:10]} 39. g4+ {[%emt 0:00:53]} hxg4 {[%emt 0:00:35]} 40. fxg4+ {[%emt 0:00:06]} Ke4 {[%emt 0:00:08]} 41. h5 {[%emt 0:00:22]} Kxd4 {[%emt 0:00:12]} 42. h6 {[%emt 0:00:22]} Kc3 {[%emt 0:00:17]} 43. h7 {[%emt 0:00:06]} d4 {[%emt 0:00:10]} 44. h8=Q {[%emt 0:00:14]} d3 {[%emt 0:00:10]} 45. Rd7+ {[%emt 0:00:39]} Kc2 {[%emt 0:00:11]} 46. Ke3 {[%emt 0:00:25]} Kb3 {[%emt 0:00:20]} 47. Rxd3+ {[%emt 0:00:34]} Bxd3 {[%emt 0:00:15]} 48. Kxd3 {[%emt 0:00:16]} Ka2 {[%emt 0:00:25]} 49. Kc2 {[%emt 0:00:53]} Ka3 {[%emt 0:00:12]} 50. Qd4 {[%emt 0:00:16]} Ka2 {[%emt 0:00:11]} 51. Qb2# {[%emt 0:00:07]} 1-0

[Event "EYCC G10-ch 2024"]
[Site "Prague"]
[Date "2024.08.24"]
[Round "3.10"]
[White "Milojevic, Dunja"]
[Black "Bakhshi, Rana"]
[Result "0-1"]
[ECO "D35"]
[WhiteElo "1568"]
[BlackElo "1732"]
[Annotator "NA RC"]
[PlyCount "80"]
[EventDate "2024.08.19"]
[EventType "swiss"]
[EventCountry "CZE"]
[SourceTitle "playchess.com"]
[Source "ChessBase"]
[SourceQuality "1"]
[TimeControl "5400+30"]

1. d4 {[%emt 0:00:02]} d5 {[%emt 0:00:57]} 2. c4 {[%emt 0:00:17]} e6 {[%emt 0:00:42]} 3. Nc3 {[%emt 0:00:11]} Nf6 {[%emt 0:01:13]} 4. cxd5 {[%emt 0:00:11]} exd5 {[%emt 0:00:46]} 5. Bg5 {[%emt 0:00:06]} c6 {[%emt 0:01:17]} 6. Nf3 {[%emt 0:00:41]} Bd6 {[%emt 0:01:21]} 7. e3 {[%emt 0:00:34]} O-O {[%emt 0:01:47]} 8. Bd3 {[%emt 0:00:25]} Re8 {[%emt 0:01:25]} 9. O-O {[%emt 0:00:34]} Be6 {[%emt 0:01:48]} 10. Qc2 {[%emt 0:01:13]} h6 {[%emt 0:01:10]} 11. Bh4 {[%emt 0:00:09]} Nbd7 {[%emt 0:00:12]} 12. a3 {[%emt 0:00:45]} a5 {[%emt 0:03:05]} 13. Rab1 {[%emt 0:00:23]} Qb8 {[%emt 0:00:21]} 14. Bf5 {[%emt 0:02:18]} b5 {[%emt 0:03:44]} 15. b4 {[%emt 0:00:46]} axb4 {[%emt 0:01:15]} 16. axb4 {[%emt 0:00:13]} Ra3 {[%emt 0:08:47]} 17. Bxe6 {[%emt 0:00:36]} Rxe6 {[%emt 0:02:22]} 18. Qb2 {[%emt 0:01:14]} Ra7 {[%emt 0:04:43]} 19. Ra1 {[%emt 0:01:01]} g5 {[%emt 0:03:44]} 20. Bg3 {[%emt 0:00:36]} Bxg3 {[%emt 0:00:11]} 21. hxg3 {[%emt 0:00:05]} Ng4 {[%emt 0:00:51]} 22. Nh2 {[%emt 0:01:01]} h5 {[%emt 0:05:24]} 23. Qe2 {[%emt 0:02:26]} Ndf6 {[%emt 0:01:30]} 24. Qf3 {[%emt 0:02:23]} Nxh2 {[%emt 0:03:55]} 25. Kxh2 {[%emt 0:00:07]} Ng4+ {[%emt 0:00:12]} 26. Kg1 {[%emt 0:00:22]} Rf6 {[%emt 0:01:46]} 27. Qd1 {[%emt 0:01:19]} Rxa1 {[%emt 0:01:42]} 28. Qxa1 {[%emt 0:00:09]} h4 {[%emt 0:00:11]} 29. Qd1 {[%emt 0:01:37]} Qc8 {[%emt 0:01:32]} 30. e4 {[%emt 0:02:59]} hxg3 {[%emt 0:00:50]} 31. f4 {[%emt 0:09:04]} Ne3 {[%emt 0:00:37]} 32. Qh5 {[%emt 0:00:18]} Nxf1 {[%emt 0:00:05]} 33. Qxg5+ {[%emt 0:00:06]} Rg6 {[%emt 0:00:14]} 34. Qe5 {[%emt 0:01:56]} Ne3 {[%emt 0:01:27]} 35. f5 {[%emt 0:01:40]} Qa8 {[%emt 0:02:24]} 36. Na4 {[%emt 0:02:13]} Qxa4 {[%emt 0:02:54]} 37. Qe8+ {[%emt 0:00:32]} Kg7 {[%emt 0:00:18]} 38. Qe5+ {[%emt 0:00:17]} Kh6 {[%emt 0:01:13]} 39. Qf4+ {[%emt 0:01:42]} Kh5 {[%emt 0:00:40]} 40. Qf3+ {[%emt 0:01:55]} Rg4 {[%emt 0:00:12]} 0-1

[Event "EYCC G10-ch 2024"]
[Site "Prague"]
[Date "2024.08.24"]
[Round "3.11"]
[White "Volani, Olga"]
[Black "Hatuk, Neris"]
[Result "1/2-1/2"]
[ECO "B11"]
[WhiteElo "1570"]
[BlackElo "1671"]
[Annotator "NA RC"]
[PlyCount "107"]
[EventDate "2024.08.19"]
[EventType "swiss"]
[EventCountry "CZE"]
[SourceTitle "playchess.com"]
[Source "ChessBase"]
[SourceQuality "1"]
[TimeControl "5400+30"]

1. e4 {[%emt 0:00:03]} c6 {[%emt 0:00:07]} 2. Nc3 {[%emt 0:00:13]} d5 {[%emt 0:00:05]} 3. Nf3 {[%emt 0:00:09]} Bg4 {[%emt 0:00:05]} 4. h3 {[%emt 0:00:34]} Bxf3 {[%emt 0:00:05]} 5. Qxf3 {[%emt 0:00:10]} Nf6 {[%emt 0:00:44]} 6. e5 {[%emt 0:07:30]} Nfd7 {[%emt 0:00:07]} 7. d4 {[%emt 0:01:04]} e6 {[%emt 0:01:15]} 8. Ne2 {[%emt 0:09:26]} c5 {[%emt 0:04:18]} 9. c3 {[%emt 0:01:04]} Nc6 {[%emt 0:03:03]} 10. Qf4 {[%emt 0:04:43]} cxd4 {[%emt 0:05:03]} 11. cxd4 {[%emt 0:00:29]} Nb4 {[%emt 0:05:32]} 12. Qd2 {[%emt 0:03:25]} Rc8 {[%emt 0:04:39]} 13. Nc3 {[%emt 0:03:47]} Nc6 {[%emt 0:07:08]} 14. Bb5 {[%emt 0:16:46]} Bb4 {[%emt 0:03:02]} 15. Bxc6 {[%emt 0:02:50]} Rxc6 {[%emt 0:01:31]} 16. Qe3 {[%emt 0:01:24]} Qa5 {[%emt 0:03:14]} 17. Bd2 {[%emt 0:01:02]} Nb6 {[%emt 0:02:06]} 18. Rb1 {[%emt 0:16:21]} Nc4 {[%emt 0:03:04]} 19. Qd3 {[%emt 0:02:21]} Nxd2 {[%emt 0:02:39]} 20. Kxd2 {[%emt 0:00:24]} Qxa2 {[%emt 0:08:11]} 21. Qc2 {[%emt 0:02:39]} Rc4 {[%emt 0:05:54]} 22. Kd3 {[%emt 0:03:17]} Rc6 {[%emt 0:03:41]} 23. Nxa2 {[%emt 0:00:51]} Rxc2 24. Kxc2 {[%emt 0:00:07]} Be7 {[%emt 0:00:31]} 25. Kd3 {[%emt 0:00:32]} O-O {[%emt 0:00:02]} 26. Rbc1 {[%emt 0:00:25]} f6 {[%emt 0:00:07]} 27. exf6 {[%emt 0:01:05]} Rxf6 {[%emt 0:00:11]} 28. f3 {[%emt 0:00:22]} Rg6 {[%emt 0:00:04]} 29. g4 {[%emt 0:01:03]} Rf6 {[%emt 0:00:07]} 30. Ke3 {[%emt 0:01:29]} Bd6 {[%emt 0:00:03]} 31. Ke2 {[%emt 0:00:48]} Rf4 {[%emt 0:00:09]} 32. Rhd1 {[%emt 0:01:35]} h5 {[%emt 0:00:02]} 33. Nc3 {[%emt 0:00:20]} a6 {[%emt 0:00:44]} 34. Kf2 {[%emt 0:00:36]} Rf6 {[%emt 0:00:43]} 35. Ne2 {[%emt 0:00:39]} h4 {[%emt 0:00:59]} 36. Ke3 {[%emt 0:00:31]} g5 {[%emt 0:00:08]} 37. Rf1 {[%emt 0:00:44]} e5 {[%emt 0:00:13]} 38. dxe5 {[%emt 0:00:39]} Bxe5 {[%emt 0:00:04]} 39. Rc2 {[%emt 0:01:03]} Rd6 {[%emt 0:01:01]} 40. Rc8+ {[%emt 0:01:11]} Kg7 {[%emt 0:00:09]} 41. Rc7+ {[%emt 0:00:10]} Kh6 {[%emt 0:00:15]} 42. Rxb7 {[%emt 0:00:17]} d4+ {[%emt 0:00:33]} 43. Kd3 {[%emt 0:00:13]} a5 {[%emt 0:00:09]} 44. Rb5 {[%emt 0:00:26]} Bg7 {[%emt 0:00:13]} 45. Rxa5 {[%emt 0:00:15]} Rb6 {[%emt 0:00:03]} 46. Rb1 {[%emt 0:00:47]} Rb3+ {[%emt 0:00:04]} 47. Kc4 {[%emt 0:00:40]} Rxf3 {[%emt 0:00:09]} 48. Nxd4 {[%emt 0:00:39]} Bxd4 {[%emt 0:00:19]} 49. Kxd4 {[%emt 0:00:08]} Rxh3 {[%emt 0:00:06]} 50. Ra6+ {[%emt 0:00:18]} Kg7 {[%emt 0:00:04]} 51. Rc1 {[%emt 0:00:18]} Rf3 {[%emt 0:00:38]} 52. Rc7+ {[%emt 0:00:05]} Rf7 {[%emt 0:00:03]} 53. Rxf7+ {[%emt 0:00:08]} Kxf7 {[%emt 0:00:04]} 54. Ke3 {[%emt 0:00:09]} 1/2-1/2

[Event "EYCC G10-ch 2024"]
[Site "Prague"]
[Date "2024.08.24"]
[Round "3.12"]
[White "Isakhanyan, Nare"]
[Black "Constantin-Ciuntu, Anne-Sophie"]
[Result "0-1"]
[ECO "A59"]
[WhiteElo "1512"]
[BlackElo "1641"]
[Annotator "NA RC"]
[PlyCount "40"]
[EventDate "2024.08.19"]
[EventType "swiss"]
[EventCountry "CZE"]
[SourceTitle "playchess.com"]
[Source "ChessBase"]
[SourceQuality "1"]
[TimeControl "5400+30"]

1. d4 {[%emt 0:00:03]} Nf6 {[%emt 0:00:06]} 2. c4 {[%emt 0:00:06]} c5 {[%emt 0:00:04]} 3. d5 {[%emt 0:00:06]} b5 {[%emt 0:00:05]} 4. cxb5 {[%emt 0:00:10]} a6 {[%emt 0:00:10]} 5. bxa6 {[%emt 0:00:38]} g6 {[%emt 0:00:13]} 6. Nc3 {[%emt 0:00:07]} Bxa6 {[%emt 0:00:07]} 7. e4 {[%emt 0:00:23]} Bxf1 {[%emt 0:00:21]} 8. Kxf1 {[%emt 0:00:10]} d6 {[%emt 0:00:24]} 9. Nf3 {[%emt 0:00:08]} Bg7 {[%emt 0:01:55]} 10. g3 {[%emt 0:00:05]} O-O {[%emt 0:00:47]} 11. Kg2 {[%emt 0:00:18]} Qa5 {[%emt 0:01:32]} 12. h3 {[%emt 0:04:11]} Na6 {[%emt 0:03:05]} 13. a4 {[%emt 0:14:24]} Nd7 {[%emt 0:05:30]} 14. Bd2 {[%emt 0:04:34]} Qb6 {[%emt 0:11:42]} 15. Qc2 {[%emt 0:05:01]} Nb4 {[%emt 0:04:37]} 16. Qb3 {[%emt 0:18:03]} Nd3 {[%emt 0:08:19]} 17. Nb5 {[%emt 0:08:02]} Nxb2 {[%emt 0:10:34]} 18. Ra2 {[%emt 0:10:48]} c4 {[%emt 0:07:04]} 19. Qb4 {[%emt 0:01:57]} Nd3 {[%emt 0:00:15]} 20. Qxc4 {[%emt 0:00:15]} Qxf2# {[%emt 0:00:09]} 0-1

[Event "EYCC G10-ch 2024"]
[Site "Prague"]
[Date "2024.08.24"]
[Round "3.13"]
[White "Slusarczyk, Agnieszka"]
[Black "Karabas, Beren Nisa"]
[Result "1-0"]
[ECO "D10"]
[WhiteElo "1614"]
[BlackElo "1494"]
[Annotator "NA"]
[PlyCount "119"]
[EventDate "2024.08.19"]
[EventType "swiss"]
[EventCountry "CZE"]
[SourceTitle "playchess.com"]
[Source "ChessBase"]
[SourceQuality "1"]
[TimeControl "5400+30"]

1. d4 {[%emt 0:00:03]} d5 {[%emt 0:00:08]} 2. c4 {[%emt 0:00:21]} c6 {[%emt 0:00:22]} 3. e3 {[%emt 0:00:40]} e6 {[%emt 0:00:09]} 4. Nc3 {[%emt 0:00:18]} f5 {[%emt 0:00:09]} 5. g4 {[%emt 0:00:08]} Nf6 {[%emt 0:10:58]} 6. gxf5 {[%emt 0:00:57]} exf5 {[%emt 0:00:35]} 7. Qb3 {[%emt 0:00:16]} Be7 {[%emt 0:09:05]} 8. cxd5 {[%emt 0:00:49]} cxd5 {[%emt 0:00:40]} 9. Bg2 {[%emt 0:01:02]} Qa5 {[%emt 0:00:59]} 10. Bxd5 {[%emt 0:02:21]} Nxd5 {[%emt 0:03:12]} 11. Qxd5 {[%emt 0:00:12]} Qxd5 {[%emt 0:01:03]} 12. Nxd5 {[%emt 0:00:11]} Na6 {[%emt 0:00:10]} 13. Bd2 {[%emt 0:02:02]} Be6 {[%emt 0:01:04]} 14. Nf4 {[%emt 0:01:57]} Bf7 {[%emt 0:00:52]} 15. Nge2 {[%emt 0:01:46]} Nb4 {[%emt 0:07:04]} 16. Bxb4 {[%emt 0:02:03]} Bxb4+ {[%emt 0:00:18]} 17. Nc3 {[%emt 0:01:00]} Rc8 {[%emt 0:00:16]} 18. Kd2 {[%emt 0:00:15]} O-O {[%emt 0:02:06]} 19. a3 {[%emt 0:00:53]} Be7 {[%emt 0:01:00]} 20. Nfd5 {[%emt 0:04:41]} Bh4 {[%emt 0:00:23]} 21. f4 {[%emt 0:03:05]} Rfd8 {[%emt 0:09:14]} 22. Nb4 {[%emt 0:01:40]} Kf8 {[%emt 0:04:53]} 23. Rac1 {[%emt 0:04:00]} Bf6 {[%emt 0:03:48]} 24. Nb5 {[%emt 0:02:27]} Rxc1 {[%emt 0:08:58]} 25. Rxc1 {[%emt 0:00:09]} a6 {[%emt 0:00:07]} 26. Nc3 {[%emt 0:01:10]} g5 {[%emt 0:01:56]} 27. Ne2 {[%emt 0:03:56]} Rd7 {[%emt 0:03:00]} 28. Rc5 {[%emt 0:05:18]} Be6 {[%emt 0:04:13]} 29. fxg5 {[%emt 0:00:59]} Bxg5 {[%emt 0:00:18]} 30. Re5 {[%emt 0:00:10]} Kf7 {[%emt 0:02:40]} 31. Ke1 {[%emt 0:10:14]} Bf6 {[%emt 0:03:56]} 32. Rc5 {[%emt 0:00:50]} Be7 {[%emt 0:00:15]} 33. Rc3 {[%emt 0:00:50]} Kf6 {[%emt 0:02:33]} 34. Nf4 {[%emt 0:00:24]} Bf7 {[%emt 0:00:56]} 35. Nbd3 {[%emt 0:00:31]} Bd6 {[%emt 0:03:03]} 36. Kf2 {[%emt 0:04:49]} Kg5 {[%emt 0:02:34]} 37. Nc5 {[%emt 0:03:06]} Re7 {[%emt 0:00:25]} 38. Kf3 {[%emt 0:04:25]} h6 {[%emt 0:05:23]} 39. b4 {[%emt 0:02:10]} Bxf4 {[%emt 0:03:51]} 40. exf4+ {[%emt 0:00:11]} Kh4 {[%emt 0:00:08]} 41. Kf2 {[%emt 0:03:33]} Kg4 {[%emt 0:00:52]} 42. Rg3+ {[%emt 0:01:24]} Kxf4 {[%emt 0:00:56]} 43. Nd3+ {[%emt 0:00:13]} Ke4 {[%emt 0:01:25]} 44. Re3+ {[%emt 0:00:08]} Kxd4 {[%emt 0:00:06]} 45. Rxe7 {[%emt 0:00:09]} Bd5 {[%emt 0:00:09]} 46. Nc5 {[%emt 0:00:21]} h5 {[%emt 0:00:08]} 47. Nxb7 {[%emt 0:00:13]} Bxb7 {[%emt 0:00:05]} 48. Rxb7 {[%emt 0:00:12]} f4 {[%emt 0:00:02]} 49. Rb6 {[%emt 0:00:15]} Kc4 {[%emt 0:00:10]} 50. Rxa6 {[%emt 0:00:05]} Kb5 {[%emt 0:00:03]} 51. Ra5+ {[%emt 0:00:15]} Kb6 {[%emt 0:00:03]} 52. Rxh5 {[%emt 0:00:10]} f3 {[%emt 0:00:08]} 53. a4 {[%emt 0:00:09]} Ka6 {[%emt 0:00:04]} 54. Rh6+ {[%emt 0:00:14]} Kb7 {[%emt 0:00:07]} 55. a5 {[%emt 0:00:06]} Ka7 {[%emt 0:00:07]} 56. b5 {[%emt 0:00:06]} Kb7 {[%emt 0:00:04]} 57. Rh7+ {[%emt 0:00:06]} Kb8 {[%emt 0:00:05]} 58. a6 {[%emt 0:00:08]} Ka8 {[%emt 0:00:02]} 59. b6 {[%emt 0:00:13]} Kb8 {[%emt 0:00:03]} 60. Rh8# {[%emt 0:00:09]} 1-0

[Event "EYCC G10-ch 2024"]
[Site "Prague"]
[Date "2024.08.24"]
[Round "3.14"]
[White "Vouk, Iva"]
[Black "Trzcinska, Weronika"]
[Result "1/2-1/2"]
[ECO "C26"]
[WhiteElo "1601"]
[BlackElo "1490"]
[Annotator "NA RC"]
[PlyCount "110"]
[EventDate "2024.08.19"]
[EventType "swiss"]
[EventCountry "CZE"]
[SourceTitle "playchess.com"]
[Source "ChessBase"]
[SourceQuality "1"]
[TimeControl "5400+30"]

1. e4 {[%emt 0:00:01]} e5 {[%emt 0:00:12]} 2. Nc3 {[%emt 0:00:04]} Nf6 {[%emt 0:01:01]} 3. f4 {[%emt 0:00:08]} d6 {[%emt 0:00:57]} 4. Nf3 {[%emt 0:00:19]} exf4 {[%emt 0:00:13]} 5. d4 {[%emt 0:00:19]} Nc6 {[%emt 0:00:17]} 6. Bxf4 {[%emt 0:00:25]} Be7 {[%emt 0:00:28]} 7. Bb5 {[%emt 0:00:26]} Bd7 {[%emt 0:00:38]} 8. Bxc6 {[%emt 0:02:22]} Bxc6 {[%emt 0:00:36]} 9. d5 {[%emt 0:00:44]} Bd7 {[%emt 0:00:21]} 10. e5 {[%emt 0:01:44]} dxe5 {[%emt 0:01:48]} 11. Nxe5 {[%emt 0:01:26]} Bd6 {[%emt 0:02:37]} 12. Qe2 {[%emt 0:00:54]} Qe7 {[%emt 0:00:52]} 13. Nxd7 {[%emt 0:02:05]} Qxe2+ {[%emt 0:02:30]} 14. Nxe2 {[%emt 0:00:09]} Kxd7 {[%emt 0:01:24]} 15. O-O-O {[%emt 0:01:15]} Rae8 {[%emt 0:00:58]} 16. Bxd6 {[%emt 0:04:44]} cxd6 {[%emt 0:01:37]} 17. Nc3 {[%emt 0:00:20]} Ne4 {[%emt 0:01:24]} 18. Nxe4 {[%emt 0:01:15]} Rxe4 {[%emt 0:00:31]} 19. Rhf1 {[%emt 0:02:00]} f6 {[%emt 0:00:34]} 20. Rd3 {[%emt 0:02:36]} Rhe8 {[%emt 0:04:35]} 21. Rg3 {[%emt 0:01:01]} R8e7 {[%emt 0:01:09]} 22. Rh3 {[%emt 0:03:05]} h6 {[%emt 0:00:31]} 23. b3 {[%emt 0:03:37]} Re3 {[%emt 0:06:24]} 24. Rxe3 {[%emt 0:01:05]} Rxe3 {[%emt 0:00:36]} 25. Kd2 {[%emt 0:00:05]} Re5 {[%emt 0:00:48]} 26. c4 {[%emt 0:00:22]} b5 {[%emt 0:01:27]} 27. Rf3 {[%emt 0:01:51]} Rg5 {[%emt 0:03:28]} 28. g3 {[%emt 0:01:43]} Re5 {[%emt 0:01:04]} 29. Re3 {[%emt 0:01:25]} Rf5 {[%emt 0:01:00]} 30. Ke2 {[%emt 0:00:59]} a6 {[%emt 0:01:12]} 31. h4 {[%emt 0:03:09]} g6 {[%emt 0:01:14]} 32. Rf3 {[%emt 0:01:36]} Rxf3 {[%emt 0:01:34]} 33. Kxf3 {[%emt 0:00:09]} bxc4 {[%emt 0:00:34]} 34. bxc4 {[%emt 0:01:03]} Kc7 {[%emt 0:00:31]} 35. Ke4 {[%emt 0:00:18]} f5+ {[%emt 0:00:57]} 36. Kd4 {[%emt 0:01:25]} Kb6 {[%emt 0:01:56]} 37. a3 {[%emt 0:00:33]} a5 {[%emt 0:01:34]} 38. a4 {[%emt 0:00:36]} Kc7 {[%emt 0:00:37]} 39. c5 {[%emt 0:00:11]} dxc5+ {[%emt 0:00:47]} 40. Kxc5 {[%emt 0:00:18]} g5 {[%emt 0:00:52]} 41. d6+ {[%emt 0:04:07]} Kd7 {[%emt 0:01:11]} 42. Kd5 {[%emt 0:00:32]} f4 {[%emt 0:01:45]} 43. hxg5 {[%emt 0:03:57]} hxg5 {[%emt 0:00:49]} 44. gxf4 {[%emt 0:00:35]} gxf4 {[%emt 0:00:30]} 45. Ke4 {[%emt 0:00:16]} Kxd6 {[%emt 0:00:20]} 46. Kxf4 {[%emt 0:00:13]} Kc5 {[%emt 0:00:54]} 47. Ke4 {[%emt 0:00:12]} Kc4 {[%emt 0:00:37]} 48. Ke3 {[%emt 0:00:11]} Kb3 {[%emt 0:00:42]} 49. Kd3 {[%emt 0:00:10]} Kxa4 {[%emt 0:00:22]} 50. Kc4 {[%emt 0:00:09]} Ka3 {[%emt 0:00:27]} 51. Kc3 {[%emt 0:00:04]} a4 {[%emt 0:00:24]} 52. Kc2 {[%emt 0:00:14]} Ka2 {[%emt 0:01:29]} 53. Kc1 {[%emt 0:00:17]} a3 {[%emt 0:00:21]} 54. Kc2 {[%emt 0:00:09]} Ka1 {[%emt 0:00:24]} 55. Kc1 {[%emt 0:00:10]} a2 {[%emt 0:00:14]} 1/2-1/2

[Event "EYCC G10-ch 2024"]
[Site "Prague"]
[Date "2024.08.25"]
[Round "4.1"]
[White "Horodna, Anna"]
[Black "Chen, Yuefan"]
[Result "0-1"]
[ECO "B40"]
[WhiteElo "1603"]
[BlackElo "1682"]
[Annotator "NA"]
[PlyCount "90"]
[EventDate "2024.08.19"]
[EventType "swiss"]
[EventCountry "CZE"]
[SourceTitle "playchess.com"]
[Source "ChessBase"]
[SourceQuality "1"]
[TimeControl "5400+30"]

1. e4 {[%emt 0:00:04]} c5 {[%emt 0:00:05]} 2. Nf3 {[%emt 0:00:17]} e6 {[%emt 0:01:32]} 3. c4 {[%emt 0:01:26]} d6 {[%emt 0:00:45]} 4. d4 {[%emt 0:01:35]} cxd4 {[%emt 0:00:43]} 5. Nxd4 {[%emt 0:00:37]} Nf6 {[%emt 0:01:02]} 6. Nc3 {[%emt 0:07:00]} a6 {[%emt 0:04:24]} 7. Bd3 {[%emt 0:01:58]} Nbd7 {[%emt 0:00:48]} 8. O-O {[%emt 0:02:09]} g6 {[%emt 0:01:54]} 9. Be3 {[%emt 0:02:49]} Bg7 {[%emt 0:00:57]} 10. f4 {[%emt 0:01:54]} b6 {[%emt 0:15:46]} 11. e5 {[%emt 0:15:51]} dxe5 {[%emt 0:07:55]} 12. Nc6 {[%emt 0:00:20]} Qc7 {[%emt 0:02:25]} 13. fxe5 {[%emt 0:01:26]} Qxc6 {[%emt 0:07:44]} 14. exf6 {[%emt 0:00:28]} Nxf6 {[%emt 0:04:05]} 15. Rxf6 {[%emt 0:01:43]} Bxf6 {[%emt 0:02:49]} 16. Be4 {[%emt 0:00:10]} Qxc4 {[%emt 0:02:03]} 17. Qf3 {[%emt 0:18:54]} Bxc3 {[%emt 0:05:24]} 18. Bc6+ {[%emt 0:00:47]} Bd7 {[%emt 0:08:20]} 19. Bxd7+ {[%emt 0:00:12]} Kxd7 {[%emt 0:02:41]} 20. Rd1+ {[%emt 0:00:56]} Kc7 {[%emt 0:06:21]} 21. Qxf7+ {[%emt 0:00:39]} Kc8 {[%emt 0:06:29]} 22. Qd7+ {[%emt 0:01:00]} Kb8 {[%emt 0:00:19]} 23. bxc3 {[%emt 0:09:30]} Ra7 {[%emt 0:03:40]} 24. Qd6+ {[%emt 0:00:02]} Qc7 {[%emt 0:00:22]} 25. Qxe6 {[%emt 0:00:28]} Rb7 {[%emt 0:01:23]} 26. Qf6 {[%emt 0:01:09]} Qg7 {[%emt 0:00:54]} 27. Qd6+ {[%emt 0:01:26]} Qc7 {[%emt 0:00:55]} 28. Qd4 {[%emt 0:00:19]} Rf8 {[%emt 0:01:26]} 29. Qb4 {[%emt 0:01:05]} Qe7 {[%emt 0:02:51]} 30. Bf4+ {[%emt 0:04:07]} Ka7 {[%emt 0:00:38]} 31. Qd4 {[%emt 0:01:29]} Re8 {[%emt 0:01:16]} 32. c4 {[%emt 0:01:12]} Qc5 {[%emt 0:01:02]} 33. Qxc5 {[%emt 0:00:24]} bxc5 {[%emt 0:00:06]} 34. Bd6 {[%emt 0:00:48]} Rc8 {[%emt 0:00:12]} 35. Rd2 {[%emt 0:01:01]} Ka8 {[%emt 0:00:30]} 36. Rd5 {[%emt 0:01:42]} Rb1+ {[%emt 0:00:46]} 37. Kf2 {[%emt 0:00:03]} Rb2+ {[%emt 0:00:06]} 38. Kf3 {[%emt 0:00:51]} Rxa2 {[%emt 0:00:23]} 39. Kf4 {[%emt 0:00:57]} Rxg2 {[%emt 0:00:21]} 40. Ke4 {[%emt 0:00:02]} Rg4+ {[%emt 0:00:28]} 41. Ke5 {[%emt 0:00:20]} Rxc4 {[%emt 0:00:33]} 42. Kf6 {[%emt 0:00:17]} Rd4 43. Rxd4 {[%emt 0:00:37]} cxd4 {[%emt 0:01:08]} 44. Bf4 {[%emt 0:00:08]} d3 {[%emt 0:00:15]} 45. Kg7 {[%emt 0:00:11]} Rc2 {[%emt 0:00:13]} 0-1

[Event "EYCC G10-ch 2024"]
[Site "Prague"]
[Date "2024.08.25"]
[Round "4.2"]
[White "Ahmadli, Mehriban"]
[Black "Tykalova, Barbora"]
[Result "1-0"]
[ECO "C84"]
[WhiteElo "1646"]
[BlackElo "1580"]
[Annotator "NA"]
[PlyCount "73"]
[EventDate "2024.08.19"]
[EventType "swiss"]
[EventCountry "CZE"]
[SourceTitle "playchess.com"]
[Source "ChessBase"]
[SourceQuality "1"]
[TimeControl "5400+30"]

1. e4 {[%emt 0:00:02]} e5 2. Nf3 {[%emt 0:00:09]} Nc6 {[%emt 0:00:14]} 3. Bb5 {[%emt 0:00:05]} a6 {[%emt 0:00:04]} 4. Ba4 {[%emt 0:00:03]} Nf6 {[%emt 0:00:15]} 5. O-O {[%emt 0:00:02]} Be7 {[%emt 0:00:16]} 6. c3 {[%emt 0:00:54]} b5 {[%emt 0:01:05]} 7. Bc2 {[%emt 0:00:01]} d6 {[%emt 0:01:04]} 8. h3 {[%emt 0:00:37]} O-O {[%emt 0:01:09]} 9. d4 {[%emt 0:01:01]} Bd7 {[%emt 0:02:49]} 10. Re1 {[%emt 0:01:40]} a5 {[%emt 0:16:00]} 11. a3 {[%emt 0:01:36]} a4 {[%emt 0:00:30]} 12. dxe5 {[%emt 0:03:38]} Nxe5 {[%emt 0:03:44]} 13. Nxe5 {[%emt 0:00:40]} dxe5 {[%emt 0:00:11]} 14. Qe2 {[%emt 0:03:03]} Qc8 {[%emt 0:00:12]} 15. Nd2 {[%emt 0:03:13]} Ra6 {[%emt 0:02:11]} 16. Nf3 {[%emt 0:02:05]} Bd6 {[%emt 0:02:52]} 17. Bd3 {[%emt 0:04:55]} c6 {[%emt 0:00:17]} 18. Bg5 {[%emt 0:01:52]} Ne8 {[%emt 0:00:16]} 19. c4 {[%emt 0:07:06]} Qb7 {[%emt 0:07:23]} 20. Be3 {[%emt 0:07:07]} f5 {[%emt 0:05:52]} 21. c5 {[%emt 0:05:18]} Bb8 {[%emt 0:01:10]} 22. exf5 {[%emt 0:01:07]} Bxf5 {[%emt 0:00:30]} 23. Bxf5 {[%emt 0:03:05]} Rxf5 {[%emt 0:00:19]} 24. Bd4 {[%emt 0:06:01]} exd4 {[%emt 0:16:58]} 25. Qxe8+ {[%emt 0:01:52]} Rf8 {[%emt 0:01:54]} 26. Qe6+ {[%emt 0:00:01]} Kh8 {[%emt 0:01:18]} 27. Nxd4 {[%emt 0:03:10]} b4 {[%emt 0:01:49]} 28. axb4 {[%emt 0:01:21]} Qxb4 {[%emt 0:01:40]} 29. Qg4 {[%emt 0:09:24]} Qxb2 {[%emt 0:02:21]} 30. Nf3 {[%emt 0:13:20]} Ba7 {[%emt 0:02:47]} 31. Rab1 {[%emt 0:04:45]} Qc3 {[%emt 0:01:13]} 32. Rbc1 {[%emt 0:06:56]} Qa5 {[%emt 0:00:47]} 33. Qc4 {[%emt 0:04:35]} a3 {[%emt 0:00:30]} 34. Ne5 {[%emt 0:03:25]} g6 {[%emt 0:07:27]} 35. Ng4 {[%emt 0:02:35]} Rd8 {[%emt 0:04:13]} 36. Re8+ {[%emt 0:01:09]} Kg7 {[%emt 0:00:29]} 37. Qg8# {[%emt 0:00:01]} 1-0